[Event "Early-Titled-Tuesday-Blitz-March-05-2024"]
[Site "Chess.com"]
[Date "2024.03.05"]
[Round "7"]
[White "annamaja"]
[Black "RantomOpening"]
[Result "1/2-1/2"]
[WhiteElo "2455"]
[BlackElo "2577"]
[TimeControl "180+1"]
[EndTime "9:21:43 PST"]
[Termination "Game drawn by stalemate"]

1. e4 {[%clk 0:03:00.9]} 1... c5 {[%clk 0:02:43.8]} 2. Nf3 {[%clk 0:03:00.2]}
2... e6 {[%clk 0:02:42.4]} 3. d4 {[%clk 0:03:00.1]} 3... cxd4 {[%clk 0:02:43.3]}
4. Nxd4 {[%clk 0:03:01]} 4... Nf6 {[%clk 0:02:41.8]} 5. Bd3 {[%clk 0:03:00.4]}
5... Nc6 {[%clk 0:02:41.3]} 6. Nb3 {[%clk 0:02:59.6]} 6... d5 {[%clk 0:02:19.1]}
7. exd5 {[%clk 0:02:55.9]} 7... exd5 {[%clk 0:02:18.7]} 8. O-O {[%clk
0:02:55.7]} 8... Be7 {[%clk 0:02:17.6]} 9. Re1 {[%clk 0:02:52.6]} 9... O-O
{[%clk 0:02:17.4]} 10. Nc3 {[%clk 0:02:51.3]} 10... Be6 {[%clk 0:02:13.7]} 11.
Bf4 {[%clk 0:02:47.6]} 11... Rc8 {[%clk 0:02:10.9]} 12. h3 {[%clk 0:02:46.4]}
12... Nb4 {[%clk 0:02:07]} 13. Be2 {[%clk 0:02:37.6]} 13... Re8 {[%clk
0:02:00.5]} 14. Nd4 {[%clk 0:02:35.1]} 14... Bc5 {[%clk 0:02:00.1]} 15. Bb5
{[%clk 0:02:14.8]} 15... Bxd4 {[%clk 0:01:41.5]} 16. Bxe8 {[%clk 0:02:12.7]}
16... Qxe8 {[%clk 0:01:31.7]} 17. Qxd4 {[%clk 0:02:07.2]} 17... Nxc2 {[%clk
0:01:31.7]} 18. Qxa7 {[%clk 0:02:02]} 18... Nxe1 {[%clk 0:01:31.9]} 19. Rxe1
{[%clk 0:02:00.9]} 19... Qc6 {[%clk 0:01:29.5]} 20. Qd4 {[%clk 0:01:51.8]} 20...
h6 {[%clk 0:01:04.3]} 21. Bxh6 {[%clk 0:01:44.2]} 21... Qc4 {[%clk 0:00:57.5]}
22. Be3 {[%clk 0:01:35.7]} 22... Ne4 {[%clk 0:00:53.7]} 23. Nxe4 {[%clk
0:01:32.3]} 23... dxe4 {[%clk 0:00:49.2]} 24. Qe5 {[%clk 0:01:21]} 24... Rd8
{[%clk 0:00:40.8]} 25. Rc1 {[%clk 0:01:10.8]} 25... Qxa2 {[%clk 0:00:39.4]} 26.
Bd4 {[%clk 0:01:08.1]} 26... f6 {[%clk 0:00:39.1]} 27. Qxe4 {[%clk 0:01:04.9]}
27... Qd5 {[%clk 0:00:33.4]} 28. Qxd5 {[%clk 0:00:36.5]} 28... Rxd5 {[%clk
0:00:34.3]} 29. Bc3 {[%clk 0:00:37.1]} 29... Rd7 {[%clk 0:00:32.9]} 30. f3
{[%clk 0:00:36.4]} 30... Bd5 {[%clk 0:00:33.1]} 31. Kf2 {[%clk 0:00:36.7]} 31...
Kf7 {[%clk 0:00:33.3]} 32. Rd1 {[%clk 0:00:36]} 32... Bc6 {[%clk 0:00:32.5]} 33.
Ra1 {[%clk 0:00:34.6]} 33... Re7 {[%clk 0:00:29.3]} 34. Ra5 {[%clk 0:00:31.2]}
34... Kg6 {[%clk 0:00:28.1]} 35. g4 {[%clk 0:00:30.6]} 35... Kf7 {[%clk
0:00:28.1]} 36. h4 {[%clk 0:00:31]} 36... Rd7 {[%clk 0:00:28.4]} 37. g5 {[%clk
0:00:23.7]} 37... Rd3 {[%clk 0:00:25.6]} 38. Rf5 {[%clk 0:00:19.4]} 38... Kg6
{[%clk 0:00:22.3]} 39. Rf4 {[%clk 0:00:05.4]} 39... fxg5 {[%clk 0:00:21.7]} 40.
hxg5 {[%clk 0:00:04.5]} 40... Kxg5 {[%clk 0:00:22.6]} 41. Rg4+ {[%clk
0:00:02.9]} 41... Kf5 {[%clk 0:00:22.5]} 42. Rxg7 {[%clk 0:00:02.3]} 42... Rxf3+
{[%clk 0:00:23]} 43. Ke2 {[%clk 0:00:03]} 43... Ke6 {[%clk 0:00:23.1]} 44. Kd2
{[%clk 0:00:03.1]} 44... Rh3 {[%clk 0:00:23.1]} 45. Kc2 {[%clk 0:00:03]} 45...
Bd5 {[%clk 0:00:22.4]} 46. Rg6+ {[%clk 0:00:03.1]} 46... Kd7 {[%clk 0:00:22.1]}
47. Rg7+ {[%clk 0:00:03.7]} 47... Kc6 {[%clk 0:00:22.3]} 48. Kd2 {[%clk
0:00:04.2]} 48... Rh2+ {[%clk 0:00:22.1]} 49. Kd3 {[%clk 0:00:04.7]} 49... b5
{[%clk 0:00:20.7]} 50. Kd4 {[%clk 0:00:05.3]} 50... Bc4 {[%clk 0:00:21]} 51.
Rg6+ {[%clk 0:00:05.4]} 51... Kb7 {[%clk 0:00:21.1]} 52. Kc5 {[%clk 0:00:06.2]}
52... Rh5+ {[%clk 0:00:21.3]} 53. Kb4 {[%clk 0:00:06]} 53... Bd3 {[%clk
0:00:18.2]} 54. Bd4 {[%clk 0:00:05.9]} 54... Bxg6 {[%clk 0:00:18.2]} 55. Bc5
{[%clk 0:00:05.1]} 55... Bd3 {[%clk 0:00:18.2]} 56. Bd4 {[%clk 0:00:04.9]} 56...
Rh4 {[%clk 0:00:18.2]} 57. Kc3 {[%clk 0:00:04.6]} 57... Rxd4 {[%clk 0:00:18.6]}
58. Kxd4 {[%clk 0:00:04.5]} 58... Bf1 {[%clk 0:00:19.5]} 59. Kc3 {[%clk
0:00:05.2]} 59... Ka6 {[%clk 0:00:20.3]} 60. Kb3 {[%clk 0:00:05.8]} 60... Kb6
{[%clk 0:00:21.2]} 61. Ka3 {[%clk 0:00:05.7]} 61... Kc5 {[%clk 0:00:21.6]} 62.
Ka2 {[%clk 0:00:05.2]} 62... Kb4 {[%clk 0:00:21.8]} 63. Kb1 {[%clk 0:00:04.3]}
63... Kb3 {[%clk 0:00:22.7]} 64. Ka1 {[%clk 0:00:05]} 64... Kc2 {[%clk
0:00:22.6]} 65. Ka2 {[%clk 0:00:05.2]} 65... b4 {[%clk 0:00:23.1]} 66. Ka1
{[%clk 0:00:06.1]} 66... Kb3 {[%clk 0:00:23]} 67. Kb1 {[%clk 0:00:06.5]} 67...
Kc4 {[%clk 0:00:22.2]} 68. Ka1 {[%clk 0:00:07.4]} 68... Kd3 {[%clk 0:00:22.4]}
69. Kb1 {[%clk 0:00:08.3]} 69... Kd2 {[%clk 0:00:22.6]} 70. Ka1 {[%clk
0:00:09.2]} 70... Kc2 {[%clk 0:00:22.9]} 71. Ka2 {[%clk 0:00:09.8]} 71... Bd3
{[%clk 0:00:20.4]} 72. Ka1 {[%clk 0:00:10.7]} 72... Kc1 {[%clk 0:00:19.9]} 73.
Ka2 {[%clk 0:00:11.6]} 73... Bc2 {[%clk 0:00:20.1]} 74. Ka1 {[%clk 0:00:12.5]}
74... Kd2 {[%clk 0:00:20.5]} 75. Ka2 {[%clk 0:00:13.1]} 75... Kd3 {[%clk
0:00:21]} 76. Ka1 {[%clk 0:00:14]} 76... Bd1 {[%clk 0:00:21.9]} 77. Ka2 {[%clk
0:00:14.9]} 77... Kc4 {[%clk 0:00:22.4]} 78. Ka1 {[%clk 0:00:15.8]} 78... Kb3
{[%clk 0:00:22.8]} 79. Kb1 {[%clk 0:00:15.8]} 79... Ka4 {[%clk 0:00:23.3]} 80.
Ka1 {[%clk 0:00:16.7]} 80... Kb5 {[%clk 0:00:21.7]} 81. Kb1 {[%clk 0:00:17.6]}
81... b3 {[%clk 0:00:21.2]} 82. Ka1 {[%clk 0:00:18]} 82... Bf3 {[%clk
0:00:21.2]} 83. Kb1 {[%clk 0:00:18.9]} 83... Bd5 {[%clk 0:00:21.6]} 84. Ka1
{[%clk 0:00:19.8]} 84... Bc4 {[%clk 0:00:22.2]} 85. Kb1 {[%clk 0:00:20.7]} 85...
Kc6 {[%clk 0:00:23.1]} 86. Ka1 {[%clk 0:00:21.6]} 86... Kd5 {[%clk 0:00:24]} 87.
Kb1 {[%clk 0:00:22.5]} 87... Kc6 {[%clk 0:00:22.1]} 88. Ka1 {[%clk 0:00:23.4]}
88... Kb7 {[%clk 0:00:22.6]} 89. Kb1 {[%clk 0:00:24.3]} 89... Kc7 {[%clk
0:00:23]} 90. Ka1 {[%clk 0:00:25.2]} 90... Kd7 {[%clk 0:00:23.5]} 91. Kb1 {[%clk
0:00:26.1]} 91... Ke7 {[%clk 0:00:24.2]} 92. Ka1 {[%clk 0:00:27]} 92... Kf7
{[%clk 0:00:24.8]} 93. Kb1 {[%clk 0:00:27.9]} 93... Kg7 {[%clk 0:00:25.6]} 94.
Ka1 {[%clk 0:00:28.8]} 94... Kh7 {[%clk 0:00:25.5]} 95. Kb1 {[%clk 0:00:29.7]}
95... Kh6 {[%clk 0:00:26.2]} 96. Ka1 {[%clk 0:00:30.6]} 96... Kh5 {[%clk
0:00:26.7]} 97. Kb1 {[%clk 0:00:31.5]} 97... Kh4 {[%clk 0:00:27.3]} 98. Ka1
{[%clk 0:00:32.4]} 98... Kh3 {[%clk 0:00:27.9]} 99. Kb1 {[%clk 0:00:33.3]} 99...
Kh2 {[%clk 0:00:28.6]} 100. Ka1 {[%clk 0:00:34.2]} 100... Kh1 {[%clk 0:00:28.4]}
101. Kb1 {[%clk 0:00:35.1]} 101... Be2 {[%clk 0:00:28.4]} 102. Ka1 {[%clk
0:00:36]} 102... Bf1 {[%clk 0:00:28.6]} 103. Kb1 {[%clk 0:00:36.9]} 103... Kg1
{[%clk 0:00:29.1]} 104. Ka1 {[%clk 0:00:37.8]} 104... Bg2 {[%clk 0:00:29.6]}
105. Kb1 {[%clk 0:00:38.7]} 105... Kh2 {[%clk 0:00:29.9]} 106. Ka1 {[%clk
0:00:39.6]} 106... Bh1 {[%clk 0:00:30.2]} 107. Kb1 {[%clk 0:00:40.5]} 107... Kg3
{[%clk 0:00:30.6]} 108. Ka1 {[%clk 0:00:41.4]} 108... Kf3 {[%clk 0:00:30.9]}
109. Kb1 {[%clk 0:00:42.3]} 109... Ke2 {[%clk 0:00:31.2]} 110. Ka1 {[%clk
0:00:43.2]} 110... Kd3 {[%clk 0:00:31.5]} 111. Kb1 {[%clk 0:00:44.1]} 111... Kd2
{[%clk 0:00:32]} 112. Ka1 {[%clk 0:00:45]} 112... Kd3 {[%clk 0:00:32.2]} 113.
Kb1 {[%clk 0:00:45.9]} 113... Kc4 {[%clk 0:00:32.8]} 114. Ka1 {[%clk 0:00:46.8]}
114... Kb5 {[%clk 0:00:33.4]} 115. Kb1 {[%clk 0:00:47.7]} 115... Ka5 {[%clk
0:00:33.8]} 116. Ka1 {[%clk 0:00:48.6]} 116... Be4 {[%clk 0:00:34.1]} 1/2-1/2

[Event "Early-Titled-Tuesday-Blitz-March-05-2024"]
[Site "Chess.com"]
[Date "2024.03.05"]
[Round "7"]
[White "vi_pranav"]
[Black "Kildepiotr"]
[Result "1/2-1/2"]
[WhiteElo "3051"]
[BlackElo "2689"]
[TimeControl "180+1"]
[EndTime "9:21:56 PST"]
[Termination "Game drawn by repetition"]

1. e4 {[%clk 0:03:00.9]} 1... e6 {[%clk 0:02:57.1]} 2. d3 {[%clk 0:03:00.3]}
2... c5 {[%clk 0:02:56]} 3. Nd2 {[%clk 0:03:01.2]} 3... Nc6 {[%clk 0:02:56.6]}
4. Ngf3 {[%clk 0:02:58.1]} 4... g6 {[%clk 0:02:56.9]} 5. g3 {[%clk 0:02:57.1]}
5... Bg7 {[%clk 0:02:57.5]} 6. Bg2 {[%clk 0:02:57.7]} 6... Nge7 {[%clk
0:02:58.1]} 7. O-O {[%clk 0:02:58.3]} 7... O-O {[%clk 0:02:58.8]} 8. Re1 {[%clk
0:02:58.5]} 8... d6 {[%clk 0:02:57.3]} 9. Nc4 {[%clk 0:02:55.9]} 9... b5 {[%clk
0:02:56.3]} 10. Ne3 {[%clk 0:02:55]} 10... b4 {[%clk 0:02:54.7]} 11. a3 {[%clk
0:02:52.4]} 11... a5 {[%clk 0:02:45]} 12. axb4 {[%clk 0:02:51.3]} 12... cxb4
{[%clk 0:02:45.6]} 13. d4 {[%clk 0:02:51.1]} 13... d5 {[%clk 0:02:45.7]} 14. e5
{[%clk 0:02:47.1]} 14... Nf5 {[%clk 0:02:40]} 15. Ng4 {[%clk 0:02:44.4]} 15...
h6 {[%clk 0:02:38.1]} 16. h4 {[%clk 0:02:41.7]} 16... Qb6 {[%clk 0:02:32.7]} 17.
c3 {[%clk 0:02:33.4]} 17... Qd8 {[%clk 0:02:08.5]} 18. Bf4 {[%clk 0:02:30.9]}
18... Kh7 {[%clk 0:02:07.2]} 19. Bf1 {[%clk 0:02:27.3]} 19... Ba6 {[%clk
0:02:06.2]} 20. Bxa6 {[%clk 0:02:25.1]} 20... Rxa6 {[%clk 0:02:07.1]} 21. Qd3
{[%clk 0:02:24.7]} 21... Rb6 {[%clk 0:02:04]} 22. h5 {[%clk 0:02:21.5]} 22... g5
{[%clk 0:02:00.2]} 23. Bd2 {[%clk 0:02:19.9]} 23... Kh8 {[%clk 0:01:56.5]} 24.
Ne3 {[%clk 0:02:15.5]} 24... Nxe3 {[%clk 0:01:52.3]} 25. Bxe3 {[%clk 0:02:16.4]}
25... f5 {[%clk 0:01:47.4]} 26. exf6 {[%clk 0:02:11.1]} 26... Qxf6 {[%clk
0:01:43.7]} 27. Nh2 {[%clk 0:02:10.7]} 27... Qf5 {[%clk 0:01:40.7]} 28. Qe2
{[%clk 0:02:07.9]} 28... bxc3 {[%clk 0:01:39.4]} 29. bxc3 {[%clk 0:02:07.3]}
29... Rb3 {[%clk 0:01:39.6]} 30. Rec1 {[%clk 0:01:57]} 30... Rfb8 {[%clk
0:01:32]} 31. Nf1 {[%clk 0:01:52.2]} 31... Rb2 {[%clk 0:01:25.7]} 32. Nd2 {[%clk
0:01:45.7]} 32... Rc2 {[%clk 0:01:16.8]} 33. Qa6 {[%clk 0:01:39.7]} 33... Rxc1+
{[%clk 0:01:10.7]} 34. Rxc1 {[%clk 0:01:30.4]} 34... Ne7 {[%clk 0:01:08.5]} 35.
Qxa5 {[%clk 0:01:25.8]} 35... Qf7 {[%clk 0:00:57.2]} 36. Qc7 {[%clk 0:01:23.1]}
36... Rc8 {[%clk 0:00:52.8]} 37. Qd7 {[%clk 0:01:19.5]} 37... Rf8 {[%clk
0:00:52.8]} 38. Ra1 {[%clk 0:01:15.6]} 38... Nf5 {[%clk 0:00:53]} 39. Qxf7
{[%clk 0:01:14.5]} 39... Rxf7 {[%clk 0:00:53.9]} 40. Kg2 {[%clk 0:01:12.6]}
40... Nxe3+ {[%clk 0:00:43.7]} 41. fxe3 {[%clk 0:01:11.7]} 41... g4 {[%clk
0:00:44.6]} 42. Nf1 {[%clk 0:00:56.3]} 42... Rc7 {[%clk 0:00:37.2]} 43. Ra3
{[%clk 0:00:53.5]} 43... Rb7 {[%clk 0:00:37.5]} 44. Ra2 {[%clk 0:00:50.9]} 44...
Rc7 {[%clk 0:00:34.1]} 45. Rc2 {[%clk 0:00:49.6]} 45... e5 {[%clk 0:00:34.2]}
46. Nh2 {[%clk 0:00:29]} 46... exd4 {[%clk 0:00:33.9]} 47. exd4 {[%clk
0:00:25.1]} 47... Bxd4 {[%clk 0:00:34]} 48. Rd2 {[%clk 0:00:25.2]} 48... Bxc3
{[%clk 0:00:32.7]} 49. Rxd5 {[%clk 0:00:25.9]} 49... Rc4 {[%clk 0:00:29.1]} 50.
Rd8+ {[%clk 0:00:17.1]} 50... Kg7 {[%clk 0:00:29.1]} 51. Rd7+ {[%clk 0:00:13.7]}
51... Kf6 {[%clk 0:00:27.4]} 52. Rd6+ {[%clk 0:00:12]} 52... Kg5 {[%clk
0:00:27.8]} 53. Rd5+ {[%clk 0:00:10.7]} 53... Kf6 {[%clk 0:00:27.2]} 54. Nf1
{[%clk 0:00:11.4]} 54... Bd4 {[%clk 0:00:18.7]} 55. Nd2 {[%clk 0:00:11]} 55...
Ke6 {[%clk 0:00:15.7]} 56. Rd8 {[%clk 0:00:07.7]} 56... Bf6 {[%clk 0:00:14.2]}
57. Re8+ {[%clk 0:00:03.1]} 57... Kf7 {[%clk 0:00:14.6]} 58. Nxc4 {[%clk
0:00:02.3]} 58... Kxe8 {[%clk 0:00:14.9]} 59. Ne3 {[%clk 0:00:03.2]} 59... Bg5
{[%clk 0:00:14.1]} 60. Nxg4 {[%clk 0:00:04.1]} 60... Kf7 {[%clk 0:00:14.5]} 61.
Kf3 {[%clk 0:00:05]} 61... Ke6 {[%clk 0:00:14.8]} 62. Ke4 {[%clk 0:00:05.9]}
62... Bc1 {[%clk 0:00:14.4]} 63. Ne5 {[%clk 0:00:06.3]} 63... Bd2 {[%clk
0:00:13.8]} 64. Nf3 {[%clk 0:00:07.2]} 64... Bc1 {[%clk 0:00:13.8]} 65. g4
{[%clk 0:00:03.6]} 65... Kf6 {[%clk 0:00:14.3]} 66. Nd4 {[%clk 0:00:02.8]} 66...
Bd2 {[%clk 0:00:14]} 67. Kf3 {[%clk 0:00:03.2]} 67... Bc1 {[%clk 0:00:14.2]} 68.
Nf5 {[%clk 0:00:03.4]} 68... Bd2 {[%clk 0:00:14.1]} 69. Ng3 {[%clk 0:00:04.1]}
69... Bc1 {[%clk 0:00:14.1]} 70. Kg2 {[%clk 0:00:03.9]} 70... Kg5 {[%clk
0:00:14]} 71. Kf3 {[%clk 0:00:03.8]} 71... Kf6 {[%clk 0:00:14.2]} 72. Ne4+
{[%clk 0:00:04.2]} 72... Ke5 {[%clk 0:00:14.2]} 73. Nc5 {[%clk 0:00:03.5]} 73...
Bd2 {[%clk 0:00:14]} 74. Nd3+ {[%clk 0:00:02]} 74... Kf6 {[%clk 0:00:14.2]} 75.
Nf2 {[%clk 0:00:02.4]} 75... Bc1 {[%clk 0:00:14.2]} 76. Nh3 {[%clk 0:00:02.4]}
76... Ke5 {[%clk 0:00:12.9]} 77. Ng1 {[%clk 0:00:02.6]} 77... Kf6 {[%clk
0:00:13]} 78. Ke4 {[%clk 0:00:02.3]} 78... Bd2 {[%clk 0:00:12.6]} 79. Nf3 {[%clk
0:00:02.6]} 79... Bc1 {[%clk 0:00:13.1]} 80. Kd5 {[%clk 0:00:02.8]} 80... Bf4
{[%clk 0:00:12.5]} 81. Kc6 {[%clk 0:00:03]} 81... Bc1 {[%clk 0:00:12.3]} 82. Kd7
{[%clk 0:00:03.3]} 82... Bf4 {[%clk 0:00:11.2]} 83. Ke8 {[%clk 0:00:03.6]} 83...
Bd6 {[%clk 0:00:11.1]} 84. Kd7 {[%clk 0:00:02.8]} 84... Ba3 {[%clk 0:00:11]} 85.
Kc6 {[%clk 0:00:03]} 85... Bc1 {[%clk 0:00:11.3]} 86. Kd5 {[%clk 0:00:03.5]}
86... Bf4 {[%clk 0:00:11.5]} 87. Kc4 {[%clk 0:00:04]} 87... Bc1 {[%clk
0:00:11.7]} 88. Kd3 {[%clk 0:00:04.6]} 88... Bf4 {[%clk 0:00:11.9]} 89. Kc2
{[%clk 0:00:05.3]} 89... Be3 {[%clk 0:00:11.9]} 90. Kd3 {[%clk 0:00:05.9]} 90...
Bf4 {[%clk 0:00:12.3]} 91. Ke4 {[%clk 0:00:06.4]} 91... Bc1 {[%clk 0:00:12.7]}
1/2-1/2

[Event "Early-Titled-Tuesday-Blitz-March-05-2024"]
[Site "Chess.com"]
[Date "2024.03.05"]
[Round "7"]
[White "Al_Shima"]
[Black "Predator0608"]
[Result "1-0"]
[WhiteElo "2445"]
[BlackElo "2537"]
[TimeControl "180+1"]
[EndTime "9:22:21 PST"]
[Termination "Al_Shima won by resignation"]

1. e4 {[%clk 0:03:00.9]} 1... c5 {[%clk 0:02:58.2]} 2. Nf3 {[%clk 0:03:01.1]}
2... d6 {[%clk 0:02:56.6]} 3. c3 {[%clk 0:03:01.1]} 3... Nf6 {[%clk 0:02:56.9]}
4. Be2 {[%clk 0:03:00.9]} 4... g6 {[%clk 0:02:56.3]} 5. O-O {[%clk 0:03:00.8]}
5... Bg7 {[%clk 0:02:56.8]} 6. Bb5+ {[%clk 0:03:00.3]} 6... Bd7 {[%clk
0:02:56.4]} 7. Bxd7+ {[%clk 0:02:59.3]} 7... Nbxd7 {[%clk 0:02:57.3]} 8. Re1
{[%clk 0:02:59.9]} 8... O-O {[%clk 0:02:56.5]} 9. d4 {[%clk 0:03:00.2]} 9...
cxd4 {[%clk 0:02:56.3]} 10. cxd4 {[%clk 0:03:00.3]} 10... e5 {[%clk 0:02:57.2]}
11. Nc3 {[%clk 0:02:58.1]} 11... a6 {[%clk 0:02:55.2]} 12. h3 {[%clk 0:02:56.6]}
12... Rc8 {[%clk 0:02:54.9]} 13. Bg5 {[%clk 0:02:51.4]} 13... h6 {[%clk
0:02:50.5]} 14. Be3 {[%clk 0:02:39.6]} 14... Kh7 {[%clk 0:02:44.5]} 15. Qd2
{[%clk 0:02:38.3]} 15... Qe7 {[%clk 0:02:21.6]} 16. Rad1 {[%clk 0:02:36.6]}
16... Rfd8 {[%clk 0:02:20.6]} 17. a3 {[%clk 0:02:20.7]} 17... exd4 {[%clk
0:01:41.4]} 18. Bxd4 {[%clk 0:02:17.5]} 18... Ne5 {[%clk 0:01:41.3]} 19. Qf4
{[%clk 0:02:04.7]} 19... Nh5 {[%clk 0:01:35.8]} 20. Qe3 {[%clk 0:02:03.1]} 20...
Nf6 {[%clk 0:01:23.6]} 21. Nxe5 {[%clk 0:01:18.2]} 21... dxe5 {[%clk 0:01:24.5]}
22. Bb6 {[%clk 0:01:19.1]} 22... Rd7 {[%clk 0:01:12.9]} 23. Rxd7 {[%clk
0:01:08.7]} 23... Qxd7 {[%clk 0:01:13.8]} 24. Rd1 {[%clk 0:01:08.5]} 24... Qe6
{[%clk 0:01:07.1]} 25. Bc5 {[%clk 0:00:40.4]} 25... Bf8 {[%clk 0:00:51.7]} 26.
Bxf8 {[%clk 0:00:34.3]} 26... Rxf8 {[%clk 0:00:52.6]} 27. Qa7 {[%clk 0:00:30]}
27... Qc6 {[%clk 0:00:50.4]} 28. Qe3 {[%clk 0:00:28.6]} 28... Kg7 {[%clk
0:00:45.9]} 29. Kh2 {[%clk 0:00:27.9]} 29... Rc8 {[%clk 0:00:45.5]} 30. f3
{[%clk 0:00:27.8]} 30... Qe6 {[%clk 0:00:36.3]} 31. Rd2 {[%clk 0:00:21.5]} 31...
Qb3 {[%clk 0:00:36.2]} 32. Qd3 {[%clk 0:00:18.6]} 32... Nh5 {[%clk 0:00:31.4]}
33. Qd6 {[%clk 0:00:10]} 33... Re8 {[%clk 0:00:27.9]} 34. Nd5 {[%clk 0:00:10]}
34... Re6 {[%clk 0:00:25.4]} 35. Qc7 {[%clk 0:00:06.6]} 35... Qb5 {[%clk
0:00:23.6]} 36. Rc2 {[%clk 0:00:05.2]} 36... Qd3 {[%clk 0:00:14.3]} 37. Qc3
{[%clk 0:00:04.1]} 37... Qd1 {[%clk 0:00:13.9]} 38. Qd2 {[%clk 0:00:03.3]} 38...
Qf1 {[%clk 0:00:13.5]} 39. Qf2 {[%clk 0:00:02.6]} 39... Qb5 {[%clk 0:00:13.5]}
40. Qd2 {[%clk 0:00:02.2]} 40... Qf1 {[%clk 0:00:13.1]} 41. Qc3 {[%clk
0:00:02.7]} 41... Nf6 {[%clk 0:00:09.4]} 42. Nxf6 {[%clk 0:00:02.6]} 42... Kxf6
{[%clk 0:00:10.3]} 43. Rd2 {[%clk 0:00:02.7]} 43... Kg7 {[%clk 0:00:10.5]} 44.
Rd5 {[%clk 0:00:02.9]} 44... Qf2 {[%clk 0:00:10.1]} 45. Rxe5 {[%clk 0:00:01.5]}
45... Rxe5 {[%clk 0:00:10.4]} 46. Qxe5+ {[%clk 0:00:02.3]} 46... Kh7 {[%clk
0:00:11.3]} 47. Qf4 {[%clk 0:00:02]} 47... Kg7 {[%clk 0:00:10.9]} 48. Qe5+
{[%clk 0:00:02.5]} 48... Kh7 {[%clk 0:00:08.2]} 49. Qe7 {[%clk 0:00:02]} 49...
Kg7 {[%clk 0:00:07.8]} 50. Qxb7 {[%clk 0:00:01.5]} 50... Qe3 {[%clk 0:00:07.4]}
51. Qb4 {[%clk 0:00:01.8]} 51... Qf4+ {[%clk 0:00:07.1]} 52. Kg1 {[%clk
0:00:02.5]} 52... Qe3+ {[%clk 0:00:07.2]} 53. Kf1 {[%clk 0:00:03.1]} 53... Qd3+
{[%clk 0:00:07.6]} 54. Kf2 {[%clk 0:00:03.5]} 54... Qc2+ {[%clk 0:00:08.1]} 55.
Kg3 {[%clk 0:00:03.8]} 55... Qc7+ {[%clk 0:00:08.1]} 56. Kf2 {[%clk 0:00:03.7]}
56... Qc2+ {[%clk 0:00:08.6]} 57. Kg3 {[%clk 0:00:04.1]} 57... Qc7+ {[%clk
0:00:08.6]} 58. f4 {[%clk 0:00:04.1]} 58... Qd7 {[%clk 0:00:04.3]} 59. Qc3+
{[%clk 0:00:04.4]} 59... Kh7 {[%clk 0:00:04.6]} 60. Kf3 {[%clk 0:00:05]} 60...
Qe7 {[%clk 0:00:04.8]} 61. Ke3 {[%clk 0:00:03.7]} 61... Qd7 {[%clk 0:00:05.2]}
62. Qd4 {[%clk 0:00:03.5]} 62... Qb5 {[%clk 0:00:05]} 63. Kf3 {[%clk 0:00:02.6]}
63... Qf1+ {[%clk 0:00:05.5]} 64. Kg3 {[%clk 0:00:03.3]} 64... Qe1+ {[%clk
0:00:06.1]} 65. Kh2 {[%clk 0:00:03.8]} 65... Qf1 {[%clk 0:00:05.4]} 66. Qf6
{[%clk 0:00:03.7]} 66... Kg8 {[%clk 0:00:04.4]} 67. Qh4 {[%clk 0:00:02.7]} 67...
Kg7 {[%clk 0:00:04.1]} 68. Qg3 {[%clk 0:00:02.7]} 68... Qe2 {[%clk 0:00:04.4]}
69. f5 {[%clk 0:00:02.7]} 69... Qxe4 {[%clk 0:00:04.1]} 70. fxg6 {[%clk
0:00:03]} 70... fxg6 {[%clk 0:00:04.5]} 71. Qc7+ {[%clk 0:00:03.6]} 71... Kf6
{[%clk 0:00:05]} 72. Qd6+ {[%clk 0:00:03.8]} 72... Kf7 {[%clk 0:00:04.7]} 73.
Qd7+ {[%clk 0:00:03.3]} 73... Kg8 {[%clk 0:00:04.1]} 74. Qd8+ {[%clk 0:00:03.1]}
74... Kg7 {[%clk 0:00:04.7]} 75. Qc7+ {[%clk 0:00:02.6]} 75... Kg8 {[%clk
0:00:05.3]} 76. Qg3 {[%clk 0:00:02.7]} 76... h5 {[%clk 0:00:04.2]} 77. Qc3
{[%clk 0:00:02]} 77... h4 {[%clk 0:00:03.7]} 78. Kg1 {[%clk 0:00:02]} 78... Qb1+
{[%clk 0:00:03.3]} 79. Kf2 {[%clk 0:00:02.1]} 79... Qf5+ {[%clk 0:00:03.9]} 80.
Ke2 {[%clk 0:00:02.1]} 80... Qe4+ {[%clk 0:00:04.2]} 81. Kf2 {[%clk 0:00:02.7]}
81... Qf5+ {[%clk 0:00:04.8]} 82. Kg1 {[%clk 0:00:03.3]} 82... Qb1+ {[%clk
0:00:04.8]} 83. Kh2 {[%clk 0:00:04]} 83... Qf5 {[%clk 0:00:05.5]} 84. Qb3+
{[%clk 0:00:03.5]} 84... Kh7 {[%clk 0:00:05]} 85. Qb7+ {[%clk 0:00:03.3]} 85...
Kh6 {[%clk 0:00:05.5]} 86. Qb3 {[%clk 0:00:02.7]} 86... Qf4+ {[%clk 0:00:05.5]}
87. Kg1 {[%clk 0:00:03.4]} 87... Qc1+ {[%clk 0:00:06.2]} 88. Kf2 {[%clk
0:00:04]} 88... Qd2+ {[%clk 0:00:06.8]} 89. Kf3 {[%clk 0:00:03.7]} 89... Qe1
{[%clk 0:00:06.2]} 90. Qe3+ {[%clk 0:00:04]} 90... Qxe3+ {[%clk 0:00:05.5]} 91.
Kxe3 {[%clk 0:00:04.9]} 91... Kg5 {[%clk 0:00:05.8]} 92. b4 {[%clk 0:00:05.5]}
92... Kf5 {[%clk 0:00:06.3]} 93. a4 {[%clk 0:00:06.1]} 93... Ke5 {[%clk
0:00:06.7]} 94. b5 {[%clk 0:00:06.4]} 94... axb5 {[%clk 0:00:07.6]} 95. axb5
{[%clk 0:00:07.3]} 95... Kd6 {[%clk 0:00:08.5]} 96. Kf4 {[%clk 0:00:08]} 96...
Kc5 {[%clk 0:00:08.3]} 97. Kg5 {[%clk 0:00:08.4]} 1-0